Cogmind - Beta 10.2 *** ADVENTURER MODE // 2020.12.09 @ 16:10:37 Player: Luigi Panache Result: Destroyed by D-53 Grenadier with Mini Grenade Launcher Performance ------------- Evolutions (2) 1000 Regions Visited (8) 1600 Robots Destroyed (103) 515 Value Destroyed (3469) 3469 Prototype IDs (26) 520 Alien Tech Used (0) 0 Bonus (1048) 1048 TOTAL SCORE: 8152 Bonus ------- High Alert Combat Kills 558 Follower Combat Kills 190 Aligned with FarCom 300 Cogmind --------- Core Integrity 0/550 Matter 300/300 Energy 100/100 System Corruption 0% Temperature Cool (0) Movement Core (50) Location -8/Storage Parts ------- > --- POWER (1) -------- (None) > --- PROPULSION (4) --- (None) > --- UTILITY (3) ------ (None) > --- WEAPON (3) ------- (None) > --- INVENTORY (4) ---- Light Treads AWS/Autocannon Peak State ------------ > --- POWER ------------ Light Angular Momentum Engine > --- PROPULSION ------- Advanced Treads Aluminum Leg Improved Aluminum Leg Improved Aluminum Leg > --- UTILITY ---------- High-capacity Storage Unit High-capacity Storage Unit Improved Light Armor Plating > --- WEAPON ----------- AWS/Autocannon > --- INVENTORY -------- Light Ion Engine Improved Ion Engine Light Treads Aluminum Leg Aluminum Leg Disposable Heat Sink Medium Storage Unit High-capacity Storage Unit Advanced Visual Processing Unit Light Armor Plating Assault Rifle Heavy Assault Rifle Shotgun Mini Grenade Launcher [Rating: 50] Favorites ----------- Power Improved Ion Engine Engine Improved Ion Engine Propulsion Light Treads Treads Light Treads Leg Aluminum Leg Hover Unit Aerolev Unit Flight Unit VTOL Module Utility High-capacity Storage Unit Device Improved Terrain Scanner Storage High-capacity Storage Unit Processor Signal Interpreter Protection Improved Light Armor Plating Weapon Light Assault Rifle Energy Gun EM Pulse Gun Ballistic Gun Light Assault Rifle Ballistic Cannon AWS/Autocannon Launcher Mini Grenade Launcher Build | -11 -10 -10 -9 -9 -9 -8 -8 -8 ------- Run | Scr Mat Min Mat Min Exi Min Mat Sto Slots Evolved 4 | . . . 2 . . . 2 . Power . | . . . . . . . . . Propulsion 2 | . . . 2 . . . . . Utility 1 | . . . . . . . 1 . Weapon 1 | . . . . . . . 1 . Parts Attached 62 | 8 7 . 16 5 1 6 3 16 Power 4 | 1 . . 1 . . 1 . 1 Engine 4 | 1 . . 1 . . 1 . 1 Core . | . . . . . . . . . Reactor . | . . . . . . . . . Propulsion 27 | 2 2 . 11 1 . 4 1 6 Treads 11 | 2 . . 7 1 . . 1 . Leg 10 | . . . 2 . . 4 . 4 Wheel . | . . . . . . . . . Hover 2 | . . . . . . . . 2 Flight 4 | . 2 . 2 . . . . . Utility 14 | 3 3 . 3 1 1 . 1 2 Device 1 | 1 . . . . . . . . Storage 5 | 1 1 . 2 . 1 . . . Processor 4 | 1 2 . 1 . . . . . Hackware . | . . . . . . . . . Protection 4 | . . . . 1 . . 1 2 Artifact . | . . . . . . . . . Weapon 17 | 2 2 . 1 3 . 1 1 7 Energy Gun 3 | 1 . . 1 . . . . 1 Energy Cannon . | . . . . . . . . . Ballistic Gun 8 | 1 2 . . 2 . . . 3 Ballistic Cannon 1 | . . . . . . . 1 . Launcher 5 | . . . . 1 . 1 . 3 Special Weapon . | . . . . . . . . . Impact Weapon . | . . . . . . . . . Slashing Weapon . | . . . . . . . . . Piercing Weapon . | . . . . . . . . . Special Melee Weapon . | . . . . . . . . . Unidentified Prototypes 3 | . . . . . . . . 3 Parts Lost 11 | . . . 1 2 . 2 . 6 Power 1 | . . . . . . . . 1 Propulsion 4 | . . . . . . 1 . 3 Utility 1 | . . . . . . . . 1 Weapon 5 | . . . 1 2 . 1 . 1 Highest Loss Streak 2 | . . . 1 2 . 1 . 2 Average Slot Usage (%) 89 | . 99 100 97 92 100 95 77 78 Engine 8 | . 14 14 11 11 11 8 9 2 Treads 22 | . 14 . 27 44 44 12 7 8 Leg 10 | . . . 5 . . 29 28 14 Hover 2 | . . . . . . . . 10 Flight 2 | . 12 28 8 . . . . . Storage 14 | . 12 14 11 11 12 22 18 17 Processor 3 | . 14 14 11 . . . . . Protection 4 | . . . . 10 9 . 5 4 Energy Gun 4 | . 14 14 10 . . . . 5 Ballistic Gun 10 | . 14 14 11 6 22 17 . 8 Ballistic Cannon 1 | . . . . . . . 8 2 Launcher 2 | . . . . 7 . 4 . 4 Naked Turns 7 | . . . . . . . . 7 Heaviest Build 136 | 11 10 10 43 45 74 76 136 136 Greatest Support 80 | 40 40 10 80 80 80 80 46 36 Greatest Overweight (x) 6 | . 1 . 2 . . 6 6 6 Average Overweight (x) . | . . . . . . 1 2 3 Largest Inventory Capacity 20 | 6 6 6 12 12 20 20 20 20 Average Capacity 14 | 5 5 6 10 12 13 20 20 19 Most Carried 20 | 6 6 6 11 12 13 14 14 20 Average Carried 12 | 3 5 6 8 11 11 12 12 18 Final Capacity 20 | 4 6 6 12 12 20 20 20 4 Final Carried 13 | 4 6 6 11 11 13 12 13 4 Class Distribution -------------------- 42% | Scavenger-Mutant 16% | Scavenger-Skirmisher 13% | Mutant 13% | Hauler-Skirmisher 9% | Hauler-Mutant Dominant Class ---------------- Mutant | -10/Materials Mutant | -10/Mines Scavenger-Mutant | -9/Materials Scavenger-Mutant | -9/Mines Scavenger-Mutant | -9/Exiles Scavenger-Mutant | -8/Mines Scavenger-Skirmisher | -8/Materials Hauler-Skirmisher | -8/Storage Resources | -11 -10 -10 -9 -9 -9 -8 -8 -8 ----------- Run | Scr Mat Min Mat Min Exi Min Mat Sto Matter Collected 1203 | 235 140 . 196 103 . 182 60 287 Remotely . | . . . . . . . . . Salvage Created 2934 | 85 315 . 366 122 . 270 675 1101 Parts 160 | 6 21 . 17 9 . 10 38 59 Haulers Intercepted 3 | . 1 . . . . . . 2 Recyclers Shooed 2 | . . . . . . . 2 . Parts Field Recycled . | . . . . . . . . . Retrieved Matter . | . . . . . . . . . Parts Self-Destructed . | . . . . . . . . . Prevented . | . . . . . . . . . Kills | -11 -10 -10 -9 -9 -9 -8 -8 -8 ------- Run | Scr Mat Min Mat Min Exi Min Mat Sto Combat Hostiles Destroyed 95 | . 7 . 6 14 . 10 24 34 Guns 17 | . 5 . 4 1 . 3 . 4 Cannons 49 | . . . . . . . 24 25 AOE 28 | . 2 . 2 13 . 7 . 4 Classes Destroyed 13 | 2 4 . 1 3 . 2 1 . Worker 1 | . . . . . . . 1 . Builder 1 | . . . . 1 . . . . Tunneler 2 | 2 . . . . . . . . Hauler 3 | . 1 . . . . . . 2 Recycler 4 | 1 . . 1 . . . 1 1 Watcher 8 | . 2 . 1 . . . 3 2 Swarmer 18 | . 3 . . . . 4 3 8 Grunt 47 | . 4 . 4 2 . 4 13 20 Brawler 2 | . . . . 1 . . 1 . Duelist 1 | . . . . . . 1 . . Sentry 13 | . . . 2 . . . 5 6 Hunter 3 | . . . . . . 1 2 . Assembled 11 | . . . . 11 . . . . Best Kill Streak 19 | 3 4 . 3 11 . 4 6 19 Combat Bots Only 17 | . 4 . 3 10 . 4 6 17 Max Kills in Single Turn 5 | 2 1 . 2 5 . 3 1 2 Gunslinging . | . . . . . . . . . Exploded 4 | . 1 . 2 4 . 3 . 2 Melee . | . . . . . . . . . Uniques/NPCs Destroyed . | . . . . . . . . . Combat | -11 -10 -10 -9 -9 -9 -8 -8 -8 -------- Run | Scr Mat Min Mat Min Exi Min Mat Sto Damage Taken 3215 | 60 172 . 357 477 . 385 348 1416 Core 744 | . 42 . 57 54 . 34 34 523 Absorbed by Shields . | . . . . . . . . . Core Remaining (%) 82 | 100 . 83 . . . 63 . . Volleys Fired 106 | 3 24 . 37 11 . 19 . 12 Largest 3 | 2 2 . 2 2 . 2 . 3 Hottest 103 | 60 60 . 85 85 . 40 . 103 Shots Fired 320 | 6 48 . 58 13 . 29 75 91 Gun 161 | 6 48 . 58 4 . 21 . 24 Cannon 135 | . . . . . . . 75 60 Launcher 24 | . . . . 9 . 8 . 7 Special . | . . . . . . . . . Kinetic 240 | 3 24 . 37 2 . 21 75 78 Thermal 4 | . . . 2 2 . . . . Explosive 24 | . . . . 9 . 8 . 7 Electromagnetic 52 | 3 24 . 19 . . . . 6 Robot Hit Streak 27 | 6 18 . 16 11 . 26 27 25 Robot Miss Streak 3 | . 3 . 1 1 . 1 1 2 Penetration Max . | . . . . . . . . . Secondary Targets 3 | . 1 . . . . 2 . . Max Gunslinging Chain 1 | . 1 . . . . 1 . . Autonomous 135 | . . . . . . . 75 60 Shots Hit Robots 268 | 6 34 . 51 12 . 21 69 75 Core Hits 158 | 3 15 . 18 24 . 21 29 48 Critical Hits 9 | . . . . . . . 7 2 Critical Kills 2 | . . . . . . . 1 1 Critical Parts Destroyed 7 | . . . . . . . 6 1 Melee Attacks . | . . . . . . . . . Impact . | . . . . . . . . . Slashing . | . . . . . . . . . Piercing . | . . . . . . . . . Sneak Attacks . | . . . . . . . . . Combat Hostiles . | . . . . . . . . . Follow-up Attacks . | . . . . . . . . . Damage Inflicted 14387 | 136 584 . 587 813 . 774 5913 5580 Guns 1522 | 45 427 . 523 45 . 170 . 312 Cannons 10588 | . . . . . . . 5830 4758 Explosions 2179 | 91 157 . 64 766 . 591 . 510 Melee . | . . . . . . . . . Ramming 98 | . . . . 2 . 13 83 . Kinetic 11340 | 9 101 . 249 18 . 170 5830 4963 Thermal 374 | 91 157 . 99 27 . . . . Explosive 1867 | . . . . 766 . 591 . 510 Electromagnetic 708 | 36 326 . 239 . . . . 107 Impact . | . . . . . . . . . Slashing . | . . . . . . . . . Piercing . | . . . . . . . . . Highest Corruption . | . . . . . . . . . Average Corruption . | . . . . . . . . . Corruption Purged . | . . . . . . . . . Overload Shots . | . . . . . . . . . Overflow Damage 1722 | . . . . 57 . 29 833 803 Projectiles 1613 | . . . . . . . 822 791 Explosions 98 | . . . . 57 . 29 . 12 Melee 11 | . . . . . . . 11 . Knockbacks 44 | . . . . . . . 22 22 Impact . | . . . . . . . . . Kinetic 37 | . . . . . . . 17 20 Secondary 7 | . . . . . . . 5 2 Self-Inflicted Damage 346 | 60 21 . 21 138 . 85 . 21 Shots 12 | 2 1 . 1 4 . 3 . 1 Rammed 3 | . . . . 1 . 2 . . Targets Rammed 9 | . . . . 1 . 2 6 . Kicked 6 | . . . . . . . 6 . Crushed . | . . . . . . . . . Highest Temperature 109 | 64 50 . 109 80 . 12 . 36 Average Temperature 24 | 31 21 . 27 39 . 3 . 14 Received Heat Transfer 1186 | . 78 . 159 220 . 117 126 486 Siege Activations . | . . . . . . . . . Robots Corrupted . | . . . . . . . . . Combat Hostiles . | . . . . . . . . . Parts Fried 3 | . 2 . . . . . . 1 Impact Corruptions 4 | . . . . . . . 3 1 Robots Melted . | . . . . . . . . . Combat Hostiles . | . . . . . . . . . Parts Melted . | . . . . . . . . . Heat Transferred 448 | 50 150 . 174 74 . . . . Parts Sabotaged . | . . . . . . . . . Parts Stolen . | . . . . . . . . . Parts Stripped . | . . . . . . . . . Power Chain Reactions 5 | 2 2 . 1 . . . . . Missiles Intercepted . | . . . . . . . . . Alert | -11 -10 -10 -9 -9 -9 -8 -8 -8 ------- Run | Scr Mat Min Mat Min Exi Min Mat Sto Peak Influence 998 | 15 264 30 414 137 . 273 724 998 Initial 178 | . 8 30 9 78 . . 90 178 Average 365 | 5 142 30 279 89 . 99 427 790 Maximum Alert Level 3 | . 1 . 2 . . 1 3 3 Low Security (%) 41 | 100 69 100 17 100 . 81 9 5 Level 1 22 | . 30 . 68 . . 18 28 5 Level 2 15 | . . . 13 . . . 60 10 Level 3 20 | . . . . . . . 1 78 Level 4 . | . . . . . . . . . Level 5 . | . . . . . . . . . High Security . | . . . . . . . . . Max Security . | . . . . . . . . . Squads Dispatched 14 | . . . 1 . . . 3 10 Investigation 3 | . . . . . . . . 3 Extermination . | . . . . . . . . . Reinforcement 7 | . . . 1 . . . 2 4 Assault 3 | . . . . . . . 1 2 Garrison 1 | . . . . . . . . 1 Intercept . | . . . . . . . . . Construction Impeded 1 | . . . . . . . . 1 Haulers Reinforced . | . . . . . . . . . Stealth | -11 -10 -10 -9 -9 -9 -8 -8 -8 --------- Run | Scr Mat Min Mat Min Exi Min Mat Sto Distress Signals 9 | . 1 . 2 . . . 2 4 Communications Jammed . | . . . . . . . . . Distress Signals . | . . . . . . . . . Times Spotted 144 | . 16 . 12 25 . 8 33 50 Peak Tracking Total 14 | . 4 . 3 14 . 3 4 11 Tactical Retreats 11 | . . . 1 2 . 1 2 5 Traps | -11 -10 -10 -9 -9 -9 -8 -8 -8 ------- Run | Scr Mat Min Mat Min Exi Min Mat Sto Traps Triggered 6 | . . . . . . . . 6 Indirectly . | . . . . . . . . . Trap Hack Attempts . | . . . . . . . . . Triggered . | . . . . . . . . . Disarmed . | . . . . . . . . . Reprogrammed . | . . . . . . . . . Reused . | . . . . . . . . . Traps Extracted . | . . . . . . . . . Installed . | . . . . . . . . . Triggered . | . . . . . . . . . Machines | -11 -10 -10 -9 -9 -9 -8 -8 -8 ---------- Run | Scr Mat Min Mat Min Exi Min Mat Sto Machines Disabled 6 | . 1 . 1 1 . . . 3 Max in Single Turn 1 | . 1 . 1 1 . . . 1 Garrison Access 1 | . . . . . . . . 1 Machines Sabotaged . | . . . . . . . . . Garrisons Compromised . | . . . . . . . . . Overloaded Fab Kills . | . . . . . . . . . Fab Network Shutdowns . | . . . . . . . . . Hacking | -11 -10 -10 -9 -9 -9 -8 -8 -8 --------- Run | Scr Mat Min Mat Min Exi Min Mat Sto Machines Accessed 15 | . 4 . 3 . 1 . 2 5 Terminals 11 | . 4 . 2 . . . 2 3 Fabricators . | . . . . . . . . . Repair Stations 2 | . . . 1 . . . . 1 Recycling Units . | . . . . . . . . . Scanalyzers . | . . . . . . . . . Garrison Access 1 | . . . . . . . . 1 Total Hacks 38 | . 8 . 11 . 1 . 8 10 Successful 21 | . 2 . 7 . 1 . 7 4 Failed 17 | . 6 . 4 . . . 1 6 Catastrophic 5 | . 1 . 1 . . . . 3 Database Lockouts . | . . . . . . . . . Manual 27 | . 7 . 7 . 1 . 6 6 Terminals 30 | . 8 . 7 . . . 8 7 Fabricators . | . . . . . . . . . Repair Stations 6 | . . . 4 . . . . 2 Recycling Units . | . . . . . . . . . Scanalyzers . | . . . . . . . . . Garrison Access 1 | . . . . . . . . 1 Terminal Hacks 12 | . 2 . 3 . 1 . 5 1 Part Schematic 3 | . . . 3 . . . . . Open Door 1 | . . . . . . . . 1 Branch Access Points 2 | . 1 . . . . . 1 . Terminal Index 2 | . 1 . . . . . 1 . Unreport Threat 1 | . . . . . . . 1 . Recall Reinforcements 1 | . . . . . . . 1 . Zone Layout 1 | . . . . . . . 1 . EX-Prototype ID Bank 1 | . . . . . 1 . . . Fabricator Hacks . | . . . . . . . . . Repair Station Hacks 6 | . . . 4 . . . . 2 Scan Component 3 | . . . 2 . . . . 1 Repair 3 | . . . 2 . . . . 1 Recycling Unit Hacks . | . . . . . . . . . Scanalyzer . | . . . . . . . . . Garrison Access Hacks 1 | . . . . . . . . 1 Seal Access 1 | . . . . . . . . 1 Unauthorized Hacks 2 | . . . . . . . 2 . Terminals 2 | . . . . . . . 2 . Botnet 2 | . . . . . . . 2 . Fabricators . | . . . . . . . . . Repair Stations . | . . . . . . . . . Recycling Units . | . . . . . . . . . Scanalyzers . | . . . . . . . . . Garrison Access . | . . . . . . . . . Data Cores Recovered . | . . . . . . . . . Used . | . . . . . . . . . Hacking Detections 11 | . 4 . 3 . . . 2 2 Full Trace Events 2 | . 1 . . . . . . 1 Feedback Events . | . . . . . . . . . Feedback Blocked . | . . . . . . . . . Robot Schematics Acquired . | . . . . . . . . . Robots Built . | . . . . . . . . . Matter . | . . . . . . . . . Time . | . . . . . . . . . Total Robot Build Rating . | . . . . . . . . . Part Schematics Acquired 3 | . . . 3 . . . . . Parts Built . | . . . . . . . . . Matter . | . . . . . . . . . Time . | . . . . . . . . . Total Part Build Rating . | . . . . . . . . . Parts Repaired 3 | . . . 2 . . . . 1 Time 78 | . . . 52 . . . . 26 Parts Recycled . | . . . . . . . . . Recycled Matter . | . . . . . . . . . Retrieved Matter . | . . . . . . . . . Retrieved Components . | . . . . . . . . . Parts Scanalyzed . | . . . . . . . . . Part Schematics Acquired . | . . . . . . . . . Parts Damaged . | . . . . . . . . . Bothacking | -11 -10 -10 -9 -9 -9 -8 -8 -8 ------------ Run | Scr Mat Min Mat Min Exi Min Mat Sto Used RIF Installer . | . . . . . . . . . Robots Hacked . | . . . . . . . . . Non-combat . | . . . . . . . . . Combat . | . . . . . . . . . Robot Hacks Applied . | . . . . . . . . . Relay Couplers Released . | . . . . . . . . . Robots Rewired . | . . . . . . . . . Allies Hacked . | . . . . . . . . . Hacks Repelled . | . . . . . . . . . Allies | -11 -10 -10 -9 -9 -9 -8 -8 -8 -------- Run | Scr Mat Min Mat Min Exi Min Mat Sto Total Allies 17 | . . 2 . 3 . . . 12 Largest Group 10 | . . 2 2 3 3 3 . 10 Highest-Rated Group 197 | . . 46 46 40 40 40 . 197 Highest-Rated Ally 31 | . . 31 31 16 16 16 . 31 Total Orders . | . . . . . . . . . Ally Attacks 41 | . . . 17 4 . 6 . 14 Total Damage 564 | . . . 294 36 . 77 . 157 Kills 8 | . . . 6 1 . . . 1 Allies Corrupted . | . . . . . . . . . Allies Melted 1 | . . . . . . 1 . . Intel | -11 -10 -10 -9 -9 -9 -8 -8 -8 ------- Run | Scr Mat Min Mat Min Exi Min Mat Sto Robot Analysis Total . | . . . . . . . . . Derelict Logs Recovered 1 | . . . . 1 . . . . Drone Launches . | . . . . . . . . . Drone Recoveries . | . . . . . . . . . Exploration | -11 -10 -10 -9 -9 -9 -8 -8 -8 ------------- Run | Scr Mat Min Mat Min Exi Min Mat Sto Turns Passed 4022 | 116 427 21 560 564 570 266 603 895 Spaces Moved 2312 | 57 490 30 313 331 354 127 276 334 Core 12 | 3 . . . . . . . 9 Treads 1093 | 54 111 . 148 331 354 20 7 68 Legs 503 | . . . 41 . . 107 269 86 Wheels . | . . . . . . . . . Hover 171 | . . . . . . . . 171 Flight 533 | . 379 30 124 . . . . . Fastest Speed 31 | 50 37 37 31 160 160 150 150 50 Average Speed 147 | 154 65 37 111 160 160 157 204 235 Slowest Speed 450 | 160 160 37 200 160 160 300 265 450 Overloaded Moves . | . . . . . . . . . Propulsion Burnouts . | . . . . . . . . . Robots Hopped 2 | . 2 . . . . . . . Cave-ins Triggered . | . . . . . . . . . Exploration Rate (%) 42 | 4 71 16 33 74 70 35 22 60 Regions Visited 8 Branch Regions 5 Pre-discovered Areas . | . . . . . . . . . Known Exits Taken 5 | . 1 . 1 1 . 1 1 . Unknown Exits Taken 3 | 1 . 1 . . 1 . . . Scrap Searched 1 | . . 1 . . . . . . Spaces Dug 7 | . . . . . . . . 7 Terrain Destroyed 240 | 8 7 . 6 67 . 98 4 50 Melee . | . . . . . . . . . Projectile 9 | . . . . . . . 4 5 AOE 231 | 8 7 . 6 67 . 98 . 45 Terrain Rammed . | . . . . . . . . . Walls Destroyed . | . . . . . . . . . Machines Disabled . | . . . . . . . . . Actions | -11 -10 -10 -9 -9 -9 -8 -8 -8 --------- Run | Scr Mat Min Mat Min Exi Min Mat Sto Total 2755 | 78 558 39 473 351 359 164 310 423 Wait 176 | . 13 10 89 3 . 7 20 34 Move 2300 | 56 485 29 312 330 353 126 275 334 Hop 2 | . 2 . . . . . . . Pick Up 46 | 7 12 . 10 . 2 1 3 11 Fast Attach 33 | 8 4 . 7 2 1 4 1 6 Attach 14 | . . . 5 1 . 2 2 4 Detach 3 | . . . . . . . 2 1 Swap 15 | . 3 . 4 2 . . . 6 Drop 51 | 4 15 . 9 1 3 3 1 15 Fire 106 | 3 24 . 37 11 . 19 . 12 Melee . | . . . . . . . . . Ram . | . . . . . . . . . Kick 6 | . . . . . . . 6 . Crush 3 | . . . . 1 . 2 . . Escape Stasis . | . . . . . . . . . Rewire . | . . . . . . . . . Trap . | . . . . . . . . . Miscellaneous . | . . . . . . . . . Route ------- -11/Scrapyard -10/Materials (discovered 3 exits: *Mat x2 / *Min) -10/Mines -9/Materials (discovered 2 exits: *Mat / *Min) -9/Mines (discovered 2 exits: *Mat / *Exi) -9/Exiles -8/Mines (discovered 2 exits: *Mat x2) -8/Materials -8/Storage History --------- Turn | Location | Event 40 | -11/Scrapyard | Discovered new exit (range 16) 117 | -11/Scrapyard | Entered Materials 192 | -10/Materials | Identified exit to Mines 301 | -10/Materials | Build established: Mutant 491 | -10/Materials | Discovered new exit (range 17) 520 | -10/Materials | Discovered new exit (range 9) 544 | -10/Materials | Entered Mines 552 | -10/Mines | Discovered new exit (range 12) 565 | -10/Mines | Entered Materials 565 | -9/Materials | Accompanied by 2 allies 565 | -9/Materials | Evolved 2 slots: Propulsion x2 570 | -9/Materials | Led the pair of lost Derelicts to an unsafe place 652 | -9/Materials | Discovered new exit (range 13) 823 | -9/Materials | Discovered new exit (range 15) 856 | -9/Materials | Identified exit to Materials 976 | -9/Materials | Build established: Scavenger-Mutant 1040 | -9/Materials | Repaired Lgt. Treads 1067 | -9/Materials | Repaired Lgt. Treads 1115 | -9/Materials | Identified exit to Mines 1125 | -9/Materials | Entered Mines 1125 | -9/Mines | Accompanied by 1 ally 1126 | -9/Mines | Assembled infested the area 1131 | -9/Mines | Assisted by a Guerilla fighting off Assembled 1163 | -9/Mines | Discovered exit to Materials (range 10) 1172 | -9/Mines | Destroyed 10 combat bots 1309 | -9/Mines | Identified exit to Exiles 1455 | -9/Mines | Assisted by bots powering up and referring to "LRC-V3" 1677 | -9/Mines | Deemed a non-threat by the Exiles lab entrance 1689 | -9/Mines | Entered Exiles 1689 | -9/Exiles | Accompanied by 3 allies 1726 | -9/Exiles | Met 8R-AWN 1755 | -9/Exiles | Met EX-HEX 1806 | -9/Exiles | Met EX-BIN 1825 | -9/Exiles | Aligned with FarCom system 1827 | -9/Exiles | Given EX-Vault access code 1864 | -9/Exiles | Opened EX-Vault 1878 | -9/Exiles | Found AWS/Autocannon 1914 | -9/Exiles | Warned to stay clear of 0b10 Research branches 1959 | -9/Exiles | Met EX-DEC 2240 | -9/Exiles | Discovered new exit (range 14) 2259 | -9/Exiles | Left Exiles lab with AWS/Autocannon 2259 | -9/Exiles | Entered Mines 2259 | -8/Mines | Accompanied by 3 allies 2498 | -8/Mines | Discovered exit to Materials (range 16) 2512 | -8/Mines | Discovered exit to Materials (range 9) 2525 | -8/Mines | Entered Materials 2525 | -8/Materials | Evolved 2 slots: Utility x1, Weapon x1 2556 | -8/Materials | Discovered new exit (range 9) 2925 | -8/Materials | First assault squad dispatched 2981 | -8/Materials | Identified exit to Storage 3057 | -8/Materials | Build established: Scavenger-Skirmisher 3128 | -8/Materials | Entered Storage 3245 | -8/Storage | Destroyed 9 combat bots 3283 | -8/Storage | Garrison activated, responded to threat 3388 | -8/Storage | Destroyed 17 combat bots 3611 | -8/Storage | Build established: Hauler-Skirmisher 3772 | -8/Storage | Repaired Lgt. Treads 3912 | -8/Storage | Assisted by bots powering up and referring to "LRC-V3" 3972 | -8/Storage | Met a pair of Derelict thieves 4016 | -8/Storage | Released all parts (8) 4018 | -8/Storage | Core integrity fell below 50% 4021 | -8/Storage | Core integrity fell below 20% 4023 | -8/Storage | Destroyed by D-53 Grenadier with Mini Grenade Launcher Last Messages --------------- 04016_ Released Aerolev Unit. 04016_ Released Imp. Light Armor Plating. 04016_ Dropped Hvy. Assault Rifle. 04016_ R-06 Scavenger destroyed. 04016_ Dropped Imp. Light Armor Plating. 04017_ The unstable cave ceiling collapses. 04017_ G-50 Soldier crushed by falling debris. 04017_ Prototype Engine crushed. 04017_ Dropped Disposable Heat Sink. 04018_ The unstable cave ceiling collapses. 04018_ Acquired AWS/Autocannon. 04019_ G-50 Soldier destroyed. 04020_ D-53 Grenadier destroyed. 04020_ G-47 Trooper destroyed. 04021_ G-50 Soldier destroyed. 04021_ Acquired 20 matter. 04022_ The unstable cave ceiling collapses. 04022_ R-06 Scavenger destroyed. 04022_ G-47 Trooper destroyed. 04023_ The unstable cave ceiling collapses. Map ----- +----------------------------------------------------+ | ???????????????????????????????????????? | | ???????????????????????????????????????? | | ???????????????????????????????????????? | | ???????????????????????????????????????? | | ???????????????????????????????????????? | | ???????????????????????????????????????? | | ???????????????????????????????????????? | | ####???????????????????????????????????? | | #???????????????????????????????????? | | #???????????????????????????????????? | | #???????????????????????????????????? | | ####????????????????????????????????? | | ###?????????Y????????????????????? | | # #########??????????????????????? | | # %! #?????" "??????????????? | | # !! [ #?? ?????????????? | | # """ #?? ?????????????? | | + """ #?# ??????#?????Y? | | # """ #?? ?????? #??????? | | # #??? ????? #??????? | | ##" "##############"Y"#???? #??????? | | ##"R"#?######### ##"""#####g ##?????? | | ##"""#?#! ! # %#m #% # #?????? | | ######?# ! # [ ! %=%=%%= #?????? | | ######?# "= g%%[% =!% +?????? | | ## #?# = %d= = @ a#?????? | | ## #?# ! " *[ d ## #?????? | | #? #?#! !!# = #?????##?????? | | ####+#?###### # ! ##????????????? | | #???## ! ! ! #?????????????? | | #???# ] !! ###?????????????? | | """ #???# ] [ #???????????????? | | """ ##??# ] ! ##???????????????? | | """ ##### ##????????????????? | | % ## + ###?????????????????? | | % % # ###+###?????????????????? | | + !!!### ##????????????????? | | % " # !!!##T #????????????????? | | % T # ] !!!## #????????????????? | | " # ## #????????????????? | | ##### #########????????????????? | | #???###????????????????????????? | | #########??????????????????????????????? | | ???????????????????????????????????????? | | ???????????????????????????????????????? | | ???????????????????????????????????????? | | ##?????????????????????????????????????? | | %??????????????????????????????? | | ###????????????????????????????????????? | | ???????????????????????????????????????? | +----------------------------------------------------+ Best States ------------- Heat Dissipation 31 Energy Generation 18 Energy Capacity 265 Matter Stores 300 Matter Capacity 300 Sight Range 18 Terrain Scan Range 16 Terrain Scan Density 60 Armor Coverage 150 Resistance: KI 20 Resistance: TH 20 Resistance: EX 20 Resistance: EM 20 Resistance: I 20 Resistance: S 20 Resistance: P 20 Evasion (%) 63 Targeting Accuracy 5 Recoil Reduction 4 Offensive Hacking 10 Item Schematics ----------------- Hcp. Storage Unit | -9/Materials | Hacked VTOL Module | -9/Materials | Hacked Lrg. Storage Unit | -9/Materials | Hacked Robot Schematics ------------------ None Fabricated ------------ Nothing Alien Tech Used ----------------- None Achievements -------------- None Challenges ------------ None Game ------ Seed AluminumScatterImmobilizer Manual? 0 Play Time 00:39:38 Cumulative 130.8 hours Start 2020.12.09 @ 15:11:48 End 2020.12.09 @ 16:10:37 Sessions 1 Manual Loads 0 Difficulty Adventurer Special Mode None Game No. 107 Rogue 31 Adventurer 38 Explorer 38 Win Type - Total 6 Types 6/0/0/0/0/0/0/0/0 Lore% 53 Gallery% 71 Achievement% 57 Wizard Run 0 Options --------- ASCII 0 Keyboard 0 Movement Mouse Keybinds 0 Fullscreen 2 Font 18/TerminusBold Map View 76x50 Tactical HUD 1 Map Filters NONE Filters NONE Steam 1 RUN: 47c07109-5de5-40b6-b7b9-3000af974197